[Event "58th Akiba Rubinstein A 2022"]
[Site "Polanica-Zdroj"]
[Date "2022.08.13"]
[Round "1.14"]
[White "Bugajski, Robert"]
[Black "Smietanska, Wiktoria"]
[Result "1/2-1/2"]
[ECO "D71"]
[WhiteElo "2075"]
[BlackElo "1919"]
[Annotator "NA RC"]
[PlyCount "87"]
[EventDate "2022.08.13"]
[EventCountry "POL"]
[SourceTitle "playchess.com"]
[Source "ChessBase"]
[SourceQuality "1"]
[TimeControl "40/5400+30:1800+30"]

1. c4 {[%emt 0:00:06]} Nf6 {[%emt 0:00:06]} 2. d4 {[%emt 0:00:36]} g6 {[%emt 0:00:08]} 3. g3 {[%emt 0:00:19]} Bg7 {[%emt 0:00:07]} 4. Bg2 {[%emt 0:00:12]} O-O {[%emt 0:00:14]} 5. Nc3 {[%emt 0:00:25]} c6 {[%emt 0:00:29]} 6. e4 {[%emt 0:00:42]} d6 {[%emt 0:01:13]} 7. Nf3 {[%emt 0:00:57]} e5 {[%emt 0:05:15]} 8. O-O {[%emt 0:03:28]} Qe7 {[%emt 0:02:58]} 9. h3 {[%emt 0:09:37]} Nbd7 {[%emt 0:04:14]} 10. Re1 {[%emt 0:05:27]} a5 {[%emt 0:06:43]} 11. Be3 {[%emt 0:03:18]} Rd8 {[%emt 0:17:46]} 12. Qc2 {[%emt 0:04:56]} exd4 {[%emt 0:07:58]} 13. Nxd4 {[%emt 0:02:05]} Nc5 {[%emt 0:00:43]} 14. Nb3 {[%emt 0:01:05]} Nxb3 {[%emt 0:02:12]} 15. axb3 {[%emt 0:00:39]} Qc7 {[%emt 0:03:57]} 16. Red1 {[%emt 0:02:50]} Be6 {[%emt 0:02:28]} 17. Qd2 {[%emt 0:03:05]} Bf8 {[%emt 0:03:40]} 18. Rac1 {[%emt 0:07:36]} h5 {[%emt 0:03:25]} 19. Bd4 {[%emt 0:14:45]} Bg7 {[%emt 0:02:41]} 20. Qf4 {[%emt 0:05:12]} Ne8 {[%emt 0:07:47]} 21. Bxg7 {[%emt 0:05:41]} Kxg7 {[%emt 0:00:25]} 22. Rd3 {[%emt 0:04:10]} Qb6 {[%emt 0:05:13]} 23. Na4 {[%emt 0:05:12]} Qb4 {[%emt 0:01:29]} 24. Qe3 {[%emt 0:05:04]} Nf6 {[%emt 0:01:54]} 25. Rcd1 {[%emt 0:03:49]} Bxc4 {[%emt 0:04:42]} 26. bxc4 {[%emt 0:00:48]} Qxa4 {[%emt 0:00:09]} 27. e5 Ne8 {[%emt 0:02:11]} 28. b3 {[%emt 0:04:02]} Qb4 {[%emt 0:00:40]} 29. exd6 {[%emt 0:00:08]} Nxd6 {[%emt 0:04:31]} 30. c5 {[%emt 0:01:51]} Re8 {[%emt 0:00:14]} 31. Qd4+ {[%emt 0:04:07]} Qxd4 {[%emt 0:00:13]} 32. Rxd4 {[%emt 0:00:01]} Nb5 {[%emt 0:01:05]} 33. Rd7 {[%emt 0:00:02]} Rab8 {[%emt 0:01:20]} 34. Bf1 {[%emt 0:01:31]} Nc3 {[%emt 0:00:45]} 35. Ra1 {[%emt 0:00:48]} Red8 {[%emt 0:05:31]} 36. Rxd8 {[%emt 0:00:48]} Rxd8 {[%emt 0:00:06]} 37. Rxa5 {[%emt 0:00:04]} Rd1 {[%emt 0:01:11]} 38. Kg2 {[%emt 0:00:09]} Ne4 {[%emt 0:00:57]} 39. b4 {[%emt 0:01:37]} Rb1 {[%emt 0:01:20]} 40. b5 {[%emt 0:00:00]} cxb5 {[%emt 0:00:00]} 41. Bd3 {[%emt 0:01:37]} Rb4 {[%emt 0:00:40]} 42. Bxe4 {[%emt 0:00:06]} Rxe4 {[%emt 0:00:04]} 43. Rxb5 {[%emt 0:00:12]} Re7 {[%emt 0:00:26]} 44. Kf3 {[%emt 0:02:12]} 1/2-1/2

[Event "58th Akiba Rubinstein A 2022"]
[Site "Polanica-Zdroj"]
[Date "2022.08.13"]
[Round "1.15"]
[White "Siekanska, Maria"]
[Black "Walkusz, Witoslaw"]
[Result "1-0"]
[ECO "D72"]
[WhiteElo "1964"]
[BlackElo "2001"]
[Annotator "TA"]
[PlyCount "87"]
[EventDate "2022.08.13"]
[EventCountry "POL"]
[SourceTitle "playchess.com"]
[Source "ChessBase"]
[SourceQuality "1"]
[TimeControl "40/5400+30:1800+30"]

{[%evp 14,87,14,10,9,8,109,55,48,54,60,39,63,13,131,113,139,133,128,124,203,190,210,192,174,197,232,238,227,238,213,201,184,199,194,189,301,174,185,177,225,217,344,344,569,570,672,687,672,637,951,931,29944,29947,29947,29942,12832,11672,29959,29963,29964,29961,29960,29961,29970,29968,29975,29978,29978,29979,29979,29980,29980,29981,29981,29982]} 1. d4 {[%emt 0:00:03]} Nf6 {[%emt 0:00:13]} 2. c4 {[%emt 0:00:06]} g6 {[%emt 0:00:29]} 3. g3 {[%emt 0:00:06]} Bg7 {[%emt 0:00:22]} 4. Bg2 {[%emt 0:00:06]} d5 {[%emt 0:00:31]} 5. cxd5 {[%emt 0:00:11]} Nxd5 {[%emt 0:00:08]} 6. e4 {[%emt 0:00:11]} Nb6 {[%emt 0:00:20]} 7. Ne2 {[%emt 0:00:10]} c5 {[%emt 0:02:08] 7...c5 is better than 7...0-0.} 8. d5 {[%emt 0:00:10]} O-O {[%emt 0:01:21] D72: Fianchetto Grünfeld: 5 cxd5 Nxd5 6 e4 Nb6 (without Nf3).} 9. O-O {[%emt 0:00:10]} f5 {[%emt 0:05:52]} (9... e6 $11 {keeps the balance.}) 10. exf5 {[%emt 0:09:08]} (10. Nbc3 $16) 10... Bxf5 $14 {[%emt 0:00:50] White is slightly better.} 11. Nbc3 {[%emt 0:02:59]} Na6 {[%emt 0:13:51]} 12. Nf4 {[%emt 0:12:37] [#]} Qd7 $146 {[%emt 0:28:18]} ({Predecessor:} 12... Nc7 13. Be3 Qd6 14. g4 Bc8 15. Ne4 Qd7 16. Nxc5 Qxg4 17. Nfe6 Qxd1 18. Raxd1 Nxe6 19. Nxe6 Bxe6 20. dxe6 Bxb2 21. Bxb7 {1-0 (71) Kortschnoj,V-Katalymov,B Tashkent 1958}) 13. h3 {[%emt 0:07:53]} ({White should play} 13. Qe2 $14) 13... c4 {[%emt 0:09:21] [#] White leaves nothing to chance now.} (13... Nb4 $1 $11 {remains equal.}) 14. g4 $1 $16 {[%emt 0:12:18]} Bd3 {[%emt 0:00:05]} 15. Nxd3 {[%emt 0:00:07]} cxd3 {[%emt 0:00:06]} 16. Qxd3 {[%emt 0:00:07]} Nb4 {[%emt 0:00:18] [#]} (16... e6 $16) 17. Qe4 $1 $18 {[%emt 0:02:17]} Bxc3 {[%emt 0:04:16]} 18. bxc3 {[%emt 0:00:12]} N4xd5 {[%emt 0:00:04]} 19. Rd1 {[%emt 0:02:17]} Nxc3 {[%emt 0:11:39]} 20. Rxd7 {[%emt 0:00:09] Qe6+ would kill now.} Nxe4 {[%emt 0:00:06]} 21. Rxb7 {[%emt 0:00:13]} Nc3 {[%emt 0:03:14]} 22. Rxe7 {[%emt 0:02:05]} Rae8 {[%emt 0:07:19]} 23. Rxe8 {[%emt 0:05:10]} ({Not} 23. Rxa7 Re1+ 24. Bf1 Ne2+ 25. Kg2 Rxc1 26. Rxc1 Nxc1 $11) 23... Rxe8 {[%emt 0:00:04]} 24. Bd2 {[%emt 0:00:26] Inhibits Re1+.} Ncd5 {[%emt 0:04:46]} (24... Rc8 $142 25. Kh2 Ncd5) 25. Kf1 {[%emt 0:00:55]} (25. a4 $142) 25... Kg7 {[%emt 0:00:43]} 26. Rc1 {[%emt 0:02:01][%cal Oa2a4] aiming for a4!} Kf6 {[%emt 0:01:18]} (26... Rd8 $142 27. Kg1 Kf6 28. Rc6+ Kf7) 27. a4 {[%emt 0:01:26][%cal Ba2a4,Ba4a5][%mdl 32]} Rd8 {[%emt 0:02:42]} (27... Ne7 $142 28. Rc7 Nxa4 29. Rxa7 Nc5) 28. a5 {[%emt 0:01:15]} Na4 $2 {[%emt 0:01:53]} (28... Nc8 29. Rxc8 Rxc8) 29. Rc4 {[%emt 0:02:25]} Nb2 {[%emt 0:00:47]} 30. Rd4 {[%emt 0:00:19]} Ke6 {[%emt 0:00:59]} 31. Bc3 {[%emt 0:02:21] This bishop pair is nice.} Nd1 {[%emt 0:01:03]} 32. Rxd5 {[%emt 0:00:24]} Rxd5 {[%emt 0:00:20]} 33. Bxd5+ {[%emt 0:00:01]} Kxd5 {[%emt 0:00:07] KB-KN} 34. Bg7 {[%emt 0:00:08]} Kc4 {[%emt 0:00:41]} 35. Ke2 {[%emt 0:00:06]} Nc3+ {[%emt 0:00:08]} 36. Bxc3 {[%emt 0:00:04] White mates.} Kxc3 {[%emt 0:00:13] KP-KP} 37. f4 {[%emt 0:01:02]} Kd4 {[%emt 0:00:27]} 38. Kf3 {[%emt 0:00:02]} a6 {[%emt 0:00:17]} 39. h4 {[%emt 0:01:26]} h5 {[%emt 0:01:12]} 40. f5 {[%emt 0:00:00]} gxf5 {[%emt 0:00:00]} 41. gxh5 {[%emt 0:01:10][%cal Bg4h5,Bh5h6,Bh6h7][%mdl 32]} Ke5 {[%emt 0:00:56]} 42. h6 {[%emt 0:00:13]} Kf6 {[%emt 0:00:04]} 43. Kf4 {[%emt 0:00:03]} Kg6 {[%emt 0:00:17]} 44. h7 {[%emt 0:00:06] Weighted Error Value: White=0.08 (flawless) /Black=0.68} 1-0

[Event "58th Akiba Rubinstein A 2022"]
[Site "Polanica-Zdroj"]
[Date "2022.08.14"]
[Round "2.1"]
[White "Cyborowski, Lukasz"]
[Black "Czechowski, Jakub"]
[Result "1-0"]
[ECO "A00"]
[WhiteElo "2483"]
[BlackElo "2003"]
[Annotator "TA"]
[PlyCount "89"]
[EventDate "2022.08.13"]
[EventCountry "POL"]
[SourceTitle "playchess.com"]
[Source "ChessBase"]
[SourceQuality "1"]
[TimeControl "40/5400+30:1800+30"]

{[%evp 19,89,0,32,32,64,27,70,23,111,104,156,142,130,98,98,93,85,93,190,176,200,194,202,138,138,122,130,130,137,135,119,138,145,118,254,260,256,260,243,233,248,228,268,272,258,267,310,294,432,445,437,410,387,274,265,277,254,217,383,348,512,321,511,502,523,508,629,560,620,547,683,667]} 1. g3 {[%emt 0:00:05]} Nf6 {[%emt 0:00:05]} 2. Bg2 {[%emt 0:00:05]} g6 {[%emt 0:00:03]} 3. e4 {[%emt 0:00:13]} e5 {[%emt 0:00:50]} 4. Ne2 {[%emt 0:00:30]} Bg7 {[%emt 0:02:21]} 5. Nbc3 {[%emt 0:01:28]} O-O {[%emt 0:00:47]} 6. d4 {[%emt 0:00:56]} exd4 {[%emt 0:00:53]} 7. Nxd4 {[%emt 0:00:06]} Nc6 {[%emt 0:01:25]} 8. Nde2 {[%emt 0:00:37]} Re8 {[%emt 0:12:39]} 9. O-O {[%emt 0:01:22]} d6 {[%emt 0:01:17]} 10. h3 {[%emt 0:01:16]} Ne5 {[%emt 0:14:27] 10...Rb8 is setting a new trend.} 11. f4 {[%emt 0:11:17] B07: Pirc Defence: Miscellaneous Systems.} Ned7 {[%emt 0:02:59]} 12. g4 {[%emt 0:03:43] [#]} h6 $146 {[%emt 0:01:14]} ({Predecessor:} 12... Nc5 13. Ng3 Bd7 14. g5 Nh5 15. Nxh5 gxh5 16. Qxh5 Bc6 17. f5 Nxe4 18. Nxe4 Bxe4 19. f6 Bf8 20. Bxe4 Rxe4 {½-½ (53) Kazakovskiy,V (2473)-Svidler,P (2723) Chess.com INT 2020}) 13. Ng3 {[%emt 0:13:57]} (13. Be3 $1 $14) 13... Nc5 {[%emt 0:02:05] [#]} (13... Rb8 $11) 14. Be3 $1 $16 {[%emt 0:04:43]} ({Much worse is} 14. e5 $6 dxe5 15. Qxd8 Rxd8 $11) 14... c6 {[%emt 0:04:48]} ({Black should play} 14... Ncd7) 15. e5 $1 {[%emt 0:06:18]} Nh7 {[%emt 0:01:14]} 16. Bxc5 {[%emt 0:06:19]} dxc5 {[%emt 0:00:18]} 17. Qxd8 {[%emt 0:00:06]} Rxd8 {[%emt 0:00:05]} 18. Nce4 {[%emt 0:00:02]} b6 {[%emt 0:02:47] [#]} (18... Bf8 $16 {was worth a try.}) 19. Nd6 $1 $18 {[%emt 0:02:09]} Bd7 {[%emt 0:00:06]} 20. Rad1 {[%emt 0:00:58] Threatens to win with Nb7.} Nf8 {[%emt 0:06:46]} 21. Nge4 {[%emt 0:00:51]} Rab8 {[%emt 0:01:30]} 22. Rd2 {[%emt 0:05:55] White is much more active.} Ne6 {[%emt 0:02:31]} 23. f5 {[%emt 0:03:58]} Bxe5 {[%emt 0:08:18]} 24. fxe6 {[%emt 0:02:27]} Bxe6 {[%emt 0:00:03]} 25. b3 {[%emt 0:01:13] Inhibits c4.} b5 {[%emt 0:03:37]} 26. c4 {[%emt 0:09:53][%cal Bc2c4,Bc4c5][%mdl 32]} b4 {[%emt 0:00:26] A mistake that costs the game.} (26... a5 $16 27. Rfd1 Bd4+ 28. Kh1 Kg7) 27. Rfd1 {[%emt 0:02:08]} Bd4+ {[%emt 0:01:10]} 28. Rxd4 {[%emt 0:01:45]} cxd4 {[%emt 0:01:30]} 29. Rxd4 {[%emt 0:00:59]} Kf8 {[%emt 0:06:06]} 30. c5 {[%emt 0:02:03]} Bd5 {[%emt 0:01:11]} 31. Nf2 {[%emt 0:02:10] Pair of Knights!} Bxg2 {[%emt 0:00:07]} 32. Kxg2 {[%emt 0:00:02]} a5 {[%emt 0:00:52]} 33. Nd3 {[%emt 0:00:10]} Rb7 {[%emt 0:01:09]} (33... Rd7 $142 34. Ne5 Rc7) 34. Ne5 {[%emt 0:01:06]} Rc7 {[%emt 0:00:08]} 35. Rf4 {[%emt 0:09:10][%csl LRf7,LRg6]} Kg7 {[%emt 0:01:58]} 36. Kf3 {[%emt 0:04:35][%cal Re5f7]} f6 {[%emt 0:04:27]} 37. Nec4 {[%emt 0:00:23]} Ra7 {[%emt 0:00:42]} 38. Re4 {[%emt 0:01:57]} Rb8 $2 {[%emt 0:01:31]} (38... a4 39. Nb6 axb3 40. axb3 Ra3 41. Re7+ (41. Rxb4 Rb8 $18) 41... Kf8 42. Rf7+ Kg8) 39. Nb6 {[%emt 0:00:36] Strongly threatening Nbc8.} Kf8 {[%emt 0:01:06]} (39... Rd8 $142 40. Re6 Kh7) 40. Re6 {[%emt 0:00:00]} Kg7 {[%emt 0:00:00]} (40... Re7 $142 41. Rxf6+ Kg7) 41. h4 {[%emt 0:07:09][%cal Bh3h4,Bh4h5,Bh5g6][%mdl 32] White is clearly winning.} Rd8 {[%emt 0:02:55]} 42. h5 {[%emt 0:00:46]} Rf8 {[%emt 0:00:56]} 43. Kf4 {[%emt 0:00:25]} Rd8 {[%emt 0:02:20]} 44. Nbc4 {[%emt 0:01:43]} Rf8 {[%emt 0:00:13]} 45. hxg6 {[%emt 0:00:33] Weighted Error Value: White=0.19 (very precise) /Black=0.53} 1-0

[Event "58th Akiba Rubinstein A 2022"]
[Site "Polanica-Zdroj"]
[Date "2022.08.14"]
[Round "2.2"]
[White "Sliwerski, Radoslaw"]
[Black "Razin, Vadim"]
[Result "0-1"]
[ECO "D07"]
[WhiteElo "1951"]
[BlackElo "2428"]
[Annotator "TA"]
[PlyCount "52"]
[EventDate "2022.08.13"]
[EventCountry "POL"]
[SourceTitle "playchess.com"]
[Source "ChessBase"]
[SourceQuality "1"]
[TimeControl "40/5400+30:1800+30"]

{[%evp 17,52,-2,21,18,35,39,39,34,79,79,85,39,53,7,38,38,44,51,84,-120,-112,-114,-112,-241,-250,-224,-242,-320,-330,-510,-497,-493,-476,-456,-351,-355,-347]} 1. d4 {[%emt 0:00:02]} d5 {[%emt 0:00:04]} 2. c4 {[%emt 0:00:11]} Nc6 {[%emt 0:00:17]} 3. Nc3 {[%emt 0:00:11]} Nf6 {[%emt 0:00:06]} 4. Nf3 {[%emt 0:00:37]} dxc4 {[%emt 0:00:13]} 5. e4 {[%emt 0:02:41]} Bg4 {[%emt 0:00:09]} 6. Be3 {[%emt 0:12:31]} e6 {[%emt 0:01:29]} 7. Bxc4 {[%emt 0:05:00]} Bb4 {[%emt 0:00:04]} 8. Qc2 {[%emt 0:13:41]} O-O {[%emt 0:08:48]} 9. Rd1 {[%emt 0:00:56]} Qe7 {[%emt 0:03:17]} 10. Be2 {[%emt 0:03:44] D07: Queen's Gambit: Chigorin Defence.} Bxc3+ {[%emt 0:29:18]} 11. bxc3 {[%emt 0:00:38]} e5 {[%emt 0:05:17]} 12. d5 {[%emt 0:11:17] [#] White is slightly better.} (12. h3 {looks sharper.} exd4 13. cxd4 Bh5 14. e5) 12... Bxf3 $146 {[%emt 0:00:27]} ({Predecessor:} 12... Na5 13. c4 b6 14. O-O Nd7 15. Rfe1 Nb7 16. Nd2 Bxe2 17. Rxe2 Rfc8 18. Nb3 a5 {½-½ (36) Sabel,R (2337)-Jung,R (2341) GER email 2020}) 13. Bxf3 {[%emt 0:01:04]} Na5 {[%emt 0:00:37]} 14. Qa4 {[%emt 0:05:32] Prevents Nc4.} (14. c4 $16) 14... b6 $14 {[%emt 0:00:14]} 15. Qb4 {[%emt 0:00:45]} (15. O-O $14) 15... Qd6 {[%emt 0:02:37]} 16. Be2 {[%emt 0:04:36]} c5 {[%emt 0:06:40]} 17. Qa4 {[%emt 0:15:41]} Qd7 {[%emt 0:03:08]} 18. Bb5 {[%emt 0:02:13]} (18. Qxd7 $16 Nxd7 19. d6) 18... Qg4 $17 {[%emt 0:00:57][%csl LRe4,LRg2]} 19. O-O {[%emt 0:02:53][%cal Oe3c5]} Qxe4 {[%emt 0:00:15]} 20. Bg5 {[%emt 0:00:29] [#] This costs White the game.} (20. Qxe4 $17 Nxe4 21. Bd2) 20... Qxa4 $1 $19 {[%emt 0:01:09]} 21. Bxa4 {[%emt 0:00:02]} Ne4 $1 {[%emt 0:00:29][%csl LRc3,LRg5]} 22. Be7 {[%emt 0:01:31]} Nxc3 {[%emt 0:00:35] Pair of Knights!} 23. Bc6 {[%emt 0:01:59]} (23. Bc2 $142 Rfe8 24. d6 Nxd1 25. Rxd1) 23... Nxc6 {[%emt 0:01:10]} 24. Bxf8 {[%emt 0:02:01]} Nxd1 {[%emt 0:01:14]} ({Stronger than} 24... Rxf8 25. dxc6 Ne2+ 26. Kh1 $17) 25. dxc6 {[%emt 0:02:54]} Kxf8 {[%emt 0:00:32]} ({Resist} 25... Rxf8 26. Rxd1 Rc8 27. c7 $18) 26. Rxd1 {[%emt 0:00:06]} Rc8 {[%emt 0:00:03] Weighted Error Value: White=0.54/Black=0.17 (very precise)} 0-1

[Event "58th Akiba Rubinstein A 2022"]
[Site "Polanica-Zdroj"]
[Date "2022.08.14"]
[Round "2.3"]
[White "Skrzyczek, Tomasz"]
[Black "Koziorowicz, Michal"]
[Result "0-1"]
[ECO "A04"]
[WhiteElo "1909"]
[BlackElo "2231"]
[Annotator "TA"]
[PlyCount "49"]
[EventDate "2022.08.13"]
[EventCountry "POL"]
[SourceTitle "playchess.com"]
[Source "ChessBase"]
[SourceQuality "1"]
[TimeControl "40/5400+30:1800+30"]

{[%evp 11,49,0,-9,-19,-15,-18,-10,-24,-17,-27,-29,-24,0,0,0,0,0,0,0,0,47,50,62,41,53,45,55,47,63,29,29,14,29,14,32,16,26,17,13,0]} 1. Nf3 {[%emt 0:00:02]} e6 {[%emt 0:02:07]} 2. g3 {[%emt 0:00:47]} b5 {[%emt 0:00:15]} 3. Bg2 {[%emt 0:00:12]} Bb7 {[%emt 0:00:06]} 4. d4 {[%emt 0:01:30]} Nf6 {[%emt 0:02:51]} 5. O-O {[%emt 0:01:38]} Be7 {[%emt 0:02:06]} 6. a4 {[%emt 0:00:38]} b4 {[%emt 0:00:52]} 7. b3 {[%emt 0:09:45] [#] A46: 1 d4 Nf6 2 Nf3 e6: Torre, London and Colle Systems.} d5 $146 {[%emt 0:04:32]} ({Predecessor:} 7... O-O 8. Bb2 c5 9. e3 cxd4 10. Nxd4 d5 11. Nd2 Nbd7 12. f4 Re8 13. g4 e5 14. Nf5 exf4 15. exf4 {0-1 (59) Pappas,K (1969)-Solozhenkin,E (2443) Hersonissos 2017}) 8. c3 {[%emt 0:03:04]} Na6 {[%emt 0:07:00][%cal Bb8a6,Ba6b4,Bb4c2][%mdl 32]} 9. cxb4 {[%emt 0:06:09]} Nxb4 {[%emt 0:00:39]} 10. Na3 {[%emt 0:01:18]} c5 {[%emt 0:07:40]} 11. Nc2 {[%emt 0:05:32]} Nxc2 {[%emt 0:03:54]} 12. Qxc2 {[%emt 0:00:02]} Rc8 {[%emt 0:00:47]} 13. Ba3 {[%emt 0:15:25][%cal Ra3c5]} cxd4 {[%emt 0:05:12]} 14. Qb2 {[%emt 0:00:27]} Bxa3 {[%emt 0:12:20]} 15. Qxa3 {[%emt 0:07:01]} d3 {[%emt 0:00:44]} (15... Qe7 $11 {might be stronger.}) 16. exd3 $14 {[%emt 0:00:41]} Qe7 {[%emt 0:00:17]} 17. b4 {[%emt 0:03:26]} O-O {[%emt 0:00:30]} 18. Qb2 {[%emt 0:00:30]} Rc7 {[%emt 0:00:30]} 19. Rfc1 {[%emt 0:00:30]} Rfc8 {[%emt 0:00:30]} 20. Rxc7 {[%emt 0:00:30]} Qxc7 {[%emt 0:09:23]} 21. b5 {[%emt 0:18:23]} Nd7 {[%emt 0:00:30]} 22. d4 {[%emt 0:00:30]} Qa5 {[%emt 0:00:30]} 23. Qd2 {[%emt 0:00:30]} Qc3 {[%emt 0:00:30]} 24. Qxc3 {[%emt 0:00:30]} Rxc3 {[%emt 0:00:30]} 25. Ne5 {[%emt 0:00:30][%mdl 32768] Weighted Error Value: White=0.07 (flawless) /Black=0.10 (very precise) . Loss on time!?} 0-1

[Event "58th Akiba Rubinstein A 2022"]
[Site "Polanica-Zdroj"]
[Date "2022.08.14"]
[Round "2.4"]
[White "Siekanska, Maria"]
[Black "Paprocki, Antoni"]
[Result "1/2-1/2"]
[ECO "E62"]
[WhiteElo "1964"]
[BlackElo "1981"]
[Annotator "NA RC"]
[PlyCount "82"]
[EventDate "2022.08.13"]
[EventCountry "POL"]
[SourceTitle "playchess.com"]
[Source "ChessBase"]
[SourceQuality "1"]
[TimeControl "40/5400+30:1800+30"]

1. d4 {[%emt 0:00:01]} Nf6 {[%emt 0:00:13]} 2. c4 {[%emt 0:00:04]} g6 {[%emt 0:00:14]} 3. g3 {[%emt 0:01:32]} Bg7 {[%emt 0:00:35]} 4. Bg2 {[%emt 0:00:06]} O-O {[%emt 0:00:53]} 5. Nf3 {[%emt 0:00:07]} d6 {[%emt 0:06:17]} 6. O-O {[%emt 0:01:20]} c6 {[%emt 0:01:15]} 7. Nc3 {[%emt 0:00:29]} Bf5 {[%emt 0:00:12]} 8. Nh4 {[%emt 0:14:08]} Be6 {[%emt 0:00:26]} 9. b3 {[%emt 0:01:20]} d5 {[%emt 0:03:25]} 10. c5 {[%emt 0:07:25]} b6 {[%emt 0:03:22]} 11. cxb6 {[%emt 0:05:11]} axb6 {[%emt 0:00:18]} 12. Bb2 {[%emt 0:00:03]} Nfd7 {[%emt 0:10:24]} 13. Rc1 {[%emt 0:02:14]} Bf6 {[%emt 0:04:08]} 14. Nf3 {[%emt 0:05:35]} Bg4 {[%emt 0:01:03]} 15. a3 {[%emt 0:09:05]} Bxf3 {[%emt 0:06:06]} 16. Bxf3 {[%emt 0:00:46]} e5 {[%emt 0:02:31]} 17. dxe5 {[%emt 0:00:12]} Bxe5 {[%emt 0:00:54]} 18. Qc2 {[%emt 0:03:18]} Nc5 {[%emt 0:09:51]} 19. Rfd1 {[%emt 0:05:40]} Nbd7 {[%emt 0:20:26]} 20. Bg2 {[%emt 0:10:01]} Ne6 {[%emt 0:02:18]} 21. e3 {[%emt 0:02:47]} Qe7 {[%emt 0:05:14]} 22. b4 {[%emt 0:05:55]} b5 {[%emt 0:01:09]} 23. e4 {[%emt 0:03:51]} d4 {[%emt 0:03:52]} 24. Ne2 {[%emt 0:00:48]} c5 {[%emt 0:04:27]} 25. bxc5 {[%emt 0:07:00]} Ndxc5 {[%emt 0:01:21]} 26. Nxd4 {[%emt 0:00:46]} Nxd4 {[%emt 0:07:04]} 27. Bxd4 {[%emt 0:00:06]} Bxd4 {[%emt 0:00:07]} 28. Rxd4 {[%emt 0:00:06]} Ne6 {[%emt 0:00:10]} 29. Rb4 {[%emt 0:00:39]} Rxa3 {[%emt 0:00:41]} 30. Rcb1 {[%emt 0:00:07]} Qa7 {[%emt 0:02:19]} 31. Qc1 {[%emt 0:03:39]} Ra2 {[%emt 0:01:15]} 32. R1b2 {[%emt 0:00:28]} Ra1 {[%emt 0:00:30]} 33. Rb1 {[%emt 0:00:01]} Ra2 {[%emt 0:01:03]} 34. R4b2 {[%emt 0:00:22]} Rxb2 {[%emt 0:00:26]} 35. Rxb2 {[%emt 0:01:05]} Rb8 {[%emt 0:00:17]} 36. Qb1 {[%emt 0:01:37]} Qc5 {[%emt 0:01:48]} 37. Rb4 {[%emt 0:02:30]} Nc7 {[%emt 0:01:41]} 38. Bf1 {[%emt 0:00:39]} Rd8 {[%emt 0:00:32]} 39. Rb2 {[%emt 0:02:15]} Rb8 {[%emt 0:00:32]} 40. Rb4 {[%emt 0:00:00]} Rd8 {[%emt 0:00:00]} 41. Rb2 {[%emt 0:00:47]} Rb8 {[%emt 0:07:28]} 1/2-1/2

[Event "58th Akiba Rubinstein A 2022"]
[Site "Polanica-Zdroj"]
[Date "2022.08.14"]
[Round "2.5"]
[White "Skrzypczynski, Kacper"]
[Black "Dziewonski, Dariusz"]
[Result "1-0"]
[ECO "D04"]
[WhiteElo "1793"]
[BlackElo "2029"]
[Annotator "NA RC"]
[PlyCount "115"]
[EventDate "2022.08.13"]
[EventCountry "POL"]
[SourceTitle "playchess.com"]
[Source "ChessBase"]
[SourceQuality "1"]
[TimeControl "40/5400+30:1800+30"]

1. d4 {[%emt 0:00:03]} d5 {[%emt 0:00:05]} 2. Nf3 {[%emt 0:00:06]} Nf6 {[%emt 0:00:20]} 3. e3 {[%emt 0:00:07]} Bf5 {[%emt 0:04:38]} 4. c4 {[%emt 0:00:48]} e6 {[%emt 0:01:33]} 5. Qb3 {[%emt 0:00:57]} Qc8 {[%emt 0:01:18]} 6. Nc3 {[%emt 0:02:48]} c6 {[%emt 0:00:57]} 7. Bd2 {[%emt 0:01:34]} Nbd7 {[%emt 0:04:59]} 8. cxd5 {[%emt 0:01:48]} exd5 {[%emt 0:00:41]} 9. Rc1 {[%emt 0:02:43]} Rb8 {[%emt 0:07:27]} 10. Be2 {[%emt 0:05:10]} h6 {[%emt 0:04:04]} 11. O-O {[%emt 0:00:37]} Qd8 {[%emt 0:02:52]} 12. Rfd1 {[%emt 0:01:25]} Bd6 {[%emt 0:03:32]} 13. a3 {[%emt 0:03:16]} O-O {[%emt 0:03:08]} 14. Be1 {[%emt 0:04:26]} Kh8 {[%emt 0:05:15]} 15. Bd3 {[%emt 0:00:47]} Bxd3 {[%emt 0:00:46]} 16. Rxd3 {[%emt 0:00:08]} Ne4 {[%emt 0:00:28]} 17. Nd2 {[%emt 0:06:38]} f5 {[%emt 0:03:45]} 18. f3 {[%emt 0:02:28]} Nxd2 {[%emt 0:05:26]} 19. Rxd2 {[%emt 0:02:31]} Qg5 {[%emt 0:06:53]} 20. Re2 {[%emt 0:09:36]} Rfe8 {[%emt 0:04:06]} 21. Bf2 {[%emt 0:03:30]} Nf6 {[%emt 0:08:24]} 22. Rce1 {[%emt 0:02:46]} Re7 {[%emt 0:02:13]} 23. Qc2 {[%emt 0:01:31]} Rbe8 {[%emt 0:02:18]} 24. b4 {[%emt 0:07:34]} a6 {[%emt 0:10:25]} 25. Qb1 {[%emt 0:01:05]} Qh5 {[%emt 0:06:14]} 26. h4 {[%emt 0:06:31]} Nd7 {[%emt 0:02:08]} 27. a4 {[%emt 0:05:24]} Nb6 {[%emt 0:01:05]} 28. b5 {[%emt 0:00:14]} Nc4 {[%emt 0:01:21]} 29. bxc6 {[%emt 0:01:37]} bxc6 {[%emt 0:00:07]} 30. Qd3 {[%emt 0:00:08]} Bb4 {[%emt 0:02:36]} 31. Rb1 {[%emt 0:01:10]} Bxc3 {[%emt 0:00:42]} 32. Qxc3 {[%emt 0:00:05]} Qf7 {[%emt 0:00:51]} 33. Rbe1 {[%emt 0:01:35]} a5 {[%emt 0:03:07]} 34. Qd3 {[%emt 0:00:55]} Re6 {[%emt 0:01:18]} 35. Qb1 {[%emt 0:03:00]} g6 {[%emt 0:01:18]} 36. e4 {[%emt 0:01:01]} fxe4 {[%emt 0:00:27]} 37. fxe4 {[%emt 0:00:06]} dxe4 {[%emt 0:01:14]} 38. Rxe4 {[%emt 0:00:38]} Nd6 {[%emt 0:00:48]} 39. Rxe6 {[%emt 0:00:26]} Rxe6 {[%emt 0:00:03]} 40. Rxe6 {[%emt 0:00:00]} Qxe6 {[%emt 0:00:00]} 41. Qb8+ {[%emt 0:01:56]} Kg7 {[%emt 0:04:49]} 42. Qc7+ {[%emt 0:00:17]} Kf6 {[%emt 0:00:30]} 43. Qxa5 {[%emt 0:04:56]} Ne4 {[%emt 0:05:48]} 44. Be3 {[%emt 0:05:49]} g5 {[%emt 0:04:29]} 45. Qd8+ {[%emt 0:03:34]} Kg6 {[%emt 0:00:49]} 46. hxg5 {[%emt 0:02:04]} Nxg5 {[%emt 0:05:06]} 47. Bf2 {[%emt 0:02:53]} Ne4 {[%emt 0:02:23]} 48. a5 {[%emt 0:04:48]} Nxf2 {[%emt 0:01:11]} 49. Kxf2 {[%emt 0:00:09]} Qa2+ {[%emt 0:04:21]} 50. Kg1 {[%emt 0:00:29]} Qe2 {[%emt 0:00:11]} 51. Qd6+ {[%emt 0:01:54]} Kf7 {[%emt 0:01:28]} 52. Qc7+ {[%emt 0:00:40]} Kg8 {[%emt 0:00:36]} 53. Qc8+ {[%emt 0:01:55]} Kg7 {[%emt 0:01:40]} 54. Qc7+ {[%emt 0:02:45]} Kg8 {[%emt 0:00:05]} 55. Qe5 {[%emt 0:00:26]} Qd3 {[%emt 0:01:30]} 56. Kh2 {[%emt 0:00:27]} Kf7 {[%emt 0:01:15]} 57. Qf4+ {[%emt 0:06:16]} Kg7 {[%emt 0:00:48]} 58. Qg3+ {[%emt 0:00:06]} 1-0